[Event "Titled Tuesday Blitz February 22 Early 2022"]
[White "Grunberg, Mihai-Lucian"]
[Black "Oro, Luis"]
[WhiteFideId "1204149"]
[BlackFideId "104094"]
[WhiteElo "2364"]
[BlackElo "2299"]
[Result "1-0"]
[Round "02"]
[TimeControl "180+1"]
[Date "2022.02.22"]
[WhiteClock "0:01:30"]
[BlackClock "0:00:08"]

1. e4 {[%clk 0:03:00]}  c5 {[%clk 0:02:58]} 2. Nf3 {[%clk 0:03:01]}  d6 {[%clk 0:02:58]} 3. d4 {[%clk 0:03:02]}  cxd4 {[%clk 0:02:59]} 4. Nxd4 {[%clk 0:03:03]}  Nf6 {[%clk 0:02:59]} 5. Nc3 {[%clk 0:03:02]}  a6 {[%clk 0:02:59]} 6. Bc4 {[%clk 0:03:02]}  e6 {[%clk 0:02:55]} 7. Qe2 {[%clk 0:03:01]}  Be7 {[%clk 0:02:49]} 8. Bg5 {[%clk 0:03:01]}  O-O {[%clk 0:02:42]} 9. O-O-O {[%clk 0:02:56]}  b5 {[%clk 0:02:32]} 10. Bb3 {[%clk 0:02:54]}  Qc7 {[%clk 0:02:28]} 11. f4 {[%clk 0:02:51]}  Nbd7 {[%clk 0:02:18]} 12. g4 {[%clk 0:02:41]}  Nc5 {[%clk 0:02:15]} 13. e5 {[%clk 0:02:37]}  dxe5 {[%clk 0:01:55]} 14. fxe5 {[%clk 0:02:36]}  Nxb3+ {[%clk 0:01:49]} 15. axb3 {[%clk 0:02:35]}  Nd5 {[%clk 0:01:48]} 16. Bxe7 {[%clk 0:02:32]}  Nxc3 {[%clk 0:01:37]} 17. bxc3 {[%clk 0:02:31]}  Qxe7 {[%clk 0:01:36]} 18. h4 {[%clk 0:02:22]}  Bb7 {[%clk 0:01:35]} 19. Rh3 {[%clk 0:02:20]}  Rac8 {[%clk 0:01:28]} 20. g5 {[%clk 0:02:19]}  Rfd8 {[%clk 0:01:25]} 21. Qe3 {[%clk 0:02:15]}  Qc5 {[%clk 0:01:15]} 22. h5 {[%clk 0:02:08]}  Bd5 {[%clk 0:00:51]} 23. g6 {[%clk 0:02:06]}  Rd7 {[%clk 0:00:32]} 24. gxh7+ {[%clk 0:02:02]}  Kh8 {[%clk 0:00:29]} 25. h6 {[%clk 0:02:02]}  g6 {[%clk 0:00:28]} 26. Qg5 {[%clk 0:01:57]}  Qe7 {[%clk 0:00:27]} 27. Qf4 {[%clk 0:01:55]}  Kxh7 {[%clk 0:00:25]} 28. Rf1 {[%clk 0:01:53]}  a5 {[%clk 0:00:22]} 29. Nf3 {[%clk 0:01:49]}  Bxf3 {[%clk 0:00:20]} 30. Rhxf3 {[%clk 0:01:49]}  Rcc7 {[%clk 0:00:19]} 31. Kb2 {[%clk 0:01:45]}  Qc5 {[%clk 0:00:18]} 32. Qf6 {[%clk 0:01:40]}  Qf8 {[%clk 0:00:14]} 33. Rg3 {[%clk 0:01:37]}  Qh8 {[%clk 0:00:11]} 34. Qg5 {[%clk 0:01:32]}  Rd5 {[%clk 0:00:09]} 35. Rxf7+ {[%clk 0:01:30]}  Rxf7 {[%clk 0:00:08]} 36. Qxg6# {[%clk 0:01:30]} 1-0


[Site "https://www.chess.com"]

[Event "Titled Tuesday Blitz February 22 Early 2022"]
[White "Guseinov, Gadir"]
[Black "Vovk, Orest"]
[WhiteFideId "13401378"]
[BlackFideId "14113490"]
[WhiteElo "2581"]
[BlackElo "2203"]
[Result "1-0"]
[Round "02"]
[TimeControl "180+1"]
[Date "2022.02.22"]
[WhiteClock "0:00:46"]
[BlackClock "0:00:05"]

1. e4 {[%clk 0:03:00]}  g5 {[%clk 0:02:57]} 2. d4 {[%clk 0:02:59]}  h6 {[%clk 0:02:56]} 3. Nc3 {[%clk 0:02:55]}  Bg7 {[%clk 0:02:55]} 4. h4 {[%clk 0:02:52]}  g4 {[%clk 0:02:55]} 5. Be3 {[%clk 0:02:49]}  d6 {[%clk 0:02:49]} 6. h5 {[%clk 0:02:45]}  c6 {[%clk 0:02:47]} 7. Nge2 {[%clk 0:02:39]}  b5 {[%clk 0:02:41]} 8. a3 {[%clk 0:02:35]}  Nd7 {[%clk 0:02:36]} 9. Ng3 {[%clk 0:02:35]}  Nb6 {[%clk 0:02:31]} 10. d5 {[%clk 0:02:25]}  Bxc3+ {[%clk 0:02:24]} 11. bxc3 {[%clk 0:02:25]}  cxd5 {[%clk 0:01:52]} 12. exd5 {[%clk 0:02:24]}  Bd7 {[%clk 0:01:42]} 13. Bd4 {[%clk 0:02:24]}  Nf6 {[%clk 0:01:38]} 14. Bxf6 {[%clk 0:02:21]}  exf6 {[%clk 0:01:38]} 15. Be2 {[%clk 0:02:22]}  f5 {[%clk 0:01:29]} 16. Qd4 {[%clk 0:02:22]}  O-O {[%clk 0:01:24]} 17. O-O {[%clk 0:02:16]}  Qg5 {[%clk 0:01:18]} 18. Bd3 {[%clk 0:02:08]}  f4 {[%clk 0:01:02]} 19. Ne4 {[%clk 0:02:05]}  Qe5 {[%clk 0:01:02]} 20. Nf6+ {[%clk 0:01:23]}  Kg7 {[%clk 0:01:01]} 21. Nxd7 {[%clk 0:01:23]}  Qxd4 {[%clk 0:00:55]} 22. cxd4 {[%clk 0:01:21]}  Nxd7 {[%clk 0:00:55]} 23. Bxb5 {[%clk 0:01:22]}  Nf6 {[%clk 0:00:53]} 24. c4 {[%clk 0:01:20]}  Nxh5 {[%clk 0:00:40]} 25. Rfe1 {[%clk 0:01:20]}  Kf6 {[%clk 0:00:28]} 26. c5 {[%clk 0:01:19]}  Rfd8 {[%clk 0:00:27]} 27. Ba6 {[%clk 0:01:13]}  dxc5 {[%clk 0:00:21]} 28. dxc5 {[%clk 0:01:12]}  Rxd5 {[%clk 0:00:20]} 29. Bb7 {[%clk 0:01:12]}  Rdd8 {[%clk 0:00:20]} 30. Bxa8 {[%clk 0:01:12]}  Rxa8 {[%clk 0:00:21]} 31. Rac1 {[%clk 0:01:09]}  Ng7 {[%clk 0:00:20]} 32. c6 {[%clk 0:01:05]}  Ne6 {[%clk 0:00:18]} 33. Re4 {[%clk 0:01:03]}  Rc8 {[%clk 0:00:17]} 34. c7 {[%clk 0:01:01]}  Ke7 {[%clk 0:00:14]} 35. Ra4 {[%clk 0:01:01]}  Rxc7 {[%clk 0:00:11]} 36. Rxc7+ {[%clk 0:01:00]}  Nxc7 {[%clk 0:00:11]} 37. Rxf4 {[%clk 0:00:59]}  h5 {[%clk 0:00:09]} 38. Rf5 {[%clk 0:00:59]}  a6 {[%clk 0:00:09]} 39. Rxh5 {[%clk 0:00:59]}  Ke6 {[%clk 0:00:08]} 40. Rc5 {[%clk 0:00:57]}  Kd6 {[%clk 0:00:08]} 41. Rg5 {[%clk 0:00:57]}  Nb5 {[%clk 0:00:06]} 42. Rxg4 {[%clk 0:00:57]}  Nxa3 {[%clk 0:00:05]} 43. Ra4 {[%clk 0:00:57]}  Nb5 {[%clk 0:00:05]} 44. Rxa6+ {[%clk 0:00:56]}  Ke7 {[%clk 0:00:06]} 45. f3 {[%clk 0:00:55]}  Nd4 {[%clk 0:00:06]} 46. Kh2 {[%clk 0:00:54]}  Kf8 {[%clk 0:00:05]} 47. Kg3 {[%clk 0:00:54]}  Kg7 {[%clk 0:00:06]} 48. Kg4 {[%clk 0:00:54]}  Nb5 {[%clk 0:00:05]} 49. f4 {[%clk 0:00:53]}  Nc7 {[%clk 0:00:05]} 50. Rc6 {[%clk 0:00:53]}  Nd5 {[%clk 0:00:05]} 51. g3 {[%clk 0:00:52]}  Ne7 {[%clk 0:00:05]} 52. Rd6 {[%clk 0:00:49]}  Ng6 {[%clk 0:00:05]} 53. Kg5 {[%clk 0:00:47]}  Nf8 {[%clk 0:00:05]} 54. g4 {[%clk 0:00:44]}  Nh7+ {[%clk 0:00:05]} 55. Kf5 {[%clk 0:00:45]}  Nf8 {[%clk 0:00:06]} 56. g5 {[%clk 0:00:45]}  Ng6 {[%clk 0:00:06]} 57. Rxg6+ {[%clk 0:00:45]}  fxg6+ {[%clk 0:00:05]} 58. Ke6 {[%clk 0:00:46]}  Kg8 {[%clk 0:00:05]} 59. Kf6 {[%clk 0:00:46]} 1-0


[Site "https://www.chess.com"]

[Event "Titled Tuesday Blitz February 22 Early 2022"]
[White "Hakemi, Arman"]
[Black "Bintang, Rasyid A. Hidayat"]
[WhiteFideId "22520805"]
[BlackFideId "7105355"]
[WhiteElo "2208"]
[BlackElo "2360"]
[Result "1-0"]
[Round "02"]
[TimeControl "180+1"]
[Date "2022.02.22"]
[WhiteClock "0:02:18"]
[BlackClock "0:02:50"]

1. e4 {[%clk 0:03:00]}  e5 {[%clk 0:02:59]} 2. Nf3 {[%clk 0:03:01]}  Nc6 {[%clk 0:03:00]} 3. Nc3 {[%clk 0:03:00]}  Nf6 {[%clk 0:02:59]} 4. Bb5 {[%clk 0:03:00]}  Nd4 {[%clk 0:02:58]} 5. Bc4 {[%clk 0:02:54]}  d6 {[%clk 0:02:58]} 6. Nxd4 {[%clk 0:02:45]}  exd4 {[%clk 0:02:59]} 7. Ne2 {[%clk 0:02:45]}  c5 {[%clk 0:02:56]} 8. d3 {[%clk 0:02:46]}  a6 {[%clk 0:02:56]} 9. a4 {[%clk 0:02:46]}  Be6 {[%clk 0:02:51]} 10. Bxe6 {[%clk 0:02:31]}  fxe6 {[%clk 0:02:52]} 11. Bg5 {[%clk 0:02:32]}  Be7 {[%clk 0:02:52]} 12. O-O {[%clk 0:02:23]}  h6 {[%clk 0:02:52]} 13. Bxf6 {[%clk 0:02:19]}  Bxf6 {[%clk 0:02:52]} 14. Nf4 {[%clk 0:02:19]}  Qe7 {[%clk 0:02:50]} 15. Ng6 {[%clk 0:02:18]} 1-0


[Site "https://www.chess.com"]

[Event "Titled Tuesday Blitz February 22 Early 2022"]
[White "Dronavalli, Harika"]
[Black "Manelyuk, Daniil"]
[WhiteFideId "5015197"]
[BlackFideId "44173920"]
[WhiteElo "2382"]
[BlackElo "2222"]
[Result "1-0"]
[Round "02"]
[TimeControl "180+1"]
[Date "2022.02.22"]
[WhiteClock "0:00:42"]
[BlackClock "0:00:11"]

1. d4 {[%clk 0:03:00]}  Nf6 {[%clk 0:02:58]} 2. c4 {[%clk 0:02:59]}  c5 {[%clk 0:02:58]} 3. d5 {[%clk 0:02:58]}  b5 {[%clk 0:02:59]} 4. cxb5 {[%clk 0:02:54]}  a6 {[%clk 0:02:59]} 5. bxa6 {[%clk 0:02:54]}  g6 {[%clk 0:02:59]} 6. Nc3 {[%clk 0:02:54]}  Bg7 {[%clk 0:02:59]} 7. g3 {[%clk 0:02:55]}  O-O {[%clk 0:02:57]} 8. Bg2 {[%clk 0:02:55]}  d6 {[%clk 0:02:56]} 9. Nf3 {[%clk 0:02:55]}  Nxa6 {[%clk 0:02:52]} 10. O-O {[%clk 0:02:56]}  Qa5 {[%clk 0:02:50]} 11. Bd2 {[%clk 0:02:53]}  Nc7 {[%clk 0:02:49]} 12. e4 {[%clk 0:02:46]}  Bg4 {[%clk 0:02:36]} 13. Re1 {[%clk 0:02:42]}  Rfb8 {[%clk 0:02:30]} 14. Qc2 {[%clk 0:02:38]}  Bxf3 {[%clk 0:02:22]} 15. Bxf3 {[%clk 0:02:39]}  Nd7 {[%clk 0:02:22]} 16. Be2 {[%clk 0:02:34]}  Qb6 {[%clk 0:02:10]} 17. b3 {[%clk 0:02:31]}  Na6 {[%clk 0:02:00]} 18. Bxa6 {[%clk 0:02:27]}  Qxa6 {[%clk 0:01:58]} 19. Kg2 {[%clk 0:02:18]}  c4 {[%clk 0:01:44]} 20. Rab1 {[%clk 0:02:08]}  Nc5 {[%clk 0:01:35]} 21. Be3 {[%clk 0:01:45]}  Nd3 {[%clk 0:01:31]} 22. Red1 {[%clk 0:01:42]}  Nb4 {[%clk 0:01:31]} 23. Qd2 {[%clk 0:01:40]}  Bxc3 {[%clk 0:01:14]} 24. Qxc3 {[%clk 0:01:40]}  Nxa2 {[%clk 0:01:13]} 25. Qd4 {[%clk 0:01:31]}  cxb3 {[%clk 0:01:03]} 26. Rd2 {[%clk 0:01:26]}  Rb4 {[%clk 0:00:53]} 27. Qb2 {[%clk 0:01:23]}  Rc8 {[%clk 0:00:48]} 28. e5 {[%clk 0:01:10]}  Qc4 {[%clk 0:00:43]} 29. exd6 {[%clk 0:01:07]}  exd6 {[%clk 0:00:38]} 30. Bh6 {[%clk 0:00:58]}  Nc3 {[%clk 0:00:27]} 31. Re1 {[%clk 0:00:55]}  Ra4 {[%clk 0:00:23]} 32. Rde2 {[%clk 0:00:51]}  Qxd5+ {[%clk 0:00:22]} 33. f3 {[%clk 0:00:50]}  f5 {[%clk 0:00:17]} 34. Re8+ {[%clk 0:00:44]}  Rxe8 {[%clk 0:00:15]} 35. Rxe8+ {[%clk 0:00:44]}  Kf7 {[%clk 0:00:15]} 36. Rf8+ {[%clk 0:00:45]}  Ke7 {[%clk 0:00:15]} 37. Qxc3 {[%clk 0:00:45]}  Qe5 {[%clk 0:00:12]} 38. Qc7+ {[%clk 0:00:44]}  Ke6 {[%clk 0:00:12]} 39. Re8+ {[%clk 0:00:45]}  Kf6 {[%clk 0:00:11]} 40. Qg7# {[%clk 0:00:42]} 1-0


[Site "https://www.chess.com"]

[Event "Titled Tuesday Blitz February 22 Early 2022"]
[White "Jaferian, Koosha"]
[Black "Jain, Naveen"]
[WhiteFideId "12507440"]
[BlackFideId "5003970"]
[WhiteElo "2027"]
[BlackElo "2036"]
[Result "1-0"]
[Round "02"]
[TimeControl "180+1"]
[Date "2022.02.22"]
[WhiteClock "0:00:20"]
[BlackClock "0:00:21"]

1. d4 {[%clk 0:03:00]}  Nf6 {[%clk 0:02:54]} 2. c4 {[%clk 0:03:00]}  c5 {[%clk 0:02:55]} 3. Nf3 {[%clk 0:02:57]}  cxd4 {[%clk 0:02:54]} 4. Nxd4 {[%clk 0:02:58]}  e5 {[%clk 0:02:55]} 5. Nf3 {[%clk 0:02:57]}  e4 {[%clk 0:02:54]} 6. Nd4 {[%clk 0:02:57]}  d5 {[%clk 0:02:55]} 7. cxd5 {[%clk 0:02:57]}  Nxd5 {[%clk 0:02:51]} 8. e3 {[%clk 0:02:55]}  Nc6 {[%clk 0:02:49]} 9. Bc4 {[%clk 0:02:51]}  Bb4+ {[%clk 0:02:46]} 10. Bd2 {[%clk 0:02:48]}  Nxd4 {[%clk 0:02:42]} 11. exd4 {[%clk 0:02:40]}  Bxd2+ {[%clk 0:02:22]} 12. Qxd2 {[%clk 0:02:39]}  O-O {[%clk 0:02:13]} 13. O-O {[%clk 0:02:28]}  Be6 {[%clk 0:02:12]} 14. Bb3 {[%clk 0:02:26]}  Qb6 {[%clk 0:02:04]} 15. Na3 {[%clk 0:02:26]}  Rac8 {[%clk 0:01:55]} 16. Nc4 {[%clk 0:02:26]}  Qb4 {[%clk 0:01:53]} 17. Qxb4 {[%clk 0:02:06]}  Nxb4 {[%clk 0:01:53]} 18. Nd6 {[%clk 0:02:07]}  Rcd8 {[%clk 0:01:29]} 19. Nxb7 {[%clk 0:02:04]}  Rxd4 {[%clk 0:01:23]} 20. Bxe6 {[%clk 0:02:05]}  fxe6 {[%clk 0:01:23]} 21. Nc5 {[%clk 0:02:05]}  Re8 {[%clk 0:01:17]} 22. a3 {[%clk 0:02:03]}  Nd3 {[%clk 0:01:16]} 23. Rfd1 {[%clk 0:01:56]}  e5 {[%clk 0:01:13]} 24. Nxe4 {[%clk 0:01:42]}  Nxb2 {[%clk 0:01:11]} 25. Rdb1 {[%clk 0:01:43]}  Nc4 {[%clk 0:01:05]} 26. f3 {[%clk 0:01:43]}  Red8 {[%clk 0:00:55]} 27. Rb7 {[%clk 0:01:40]}  Rd1+ {[%clk 0:00:51]} 28. Rxd1 {[%clk 0:01:39]}  Rxd1+ {[%clk 0:00:51]} 29. Kf2 {[%clk 0:01:40]}  Nxa3 {[%clk 0:00:52]} 30. Rxa7 {[%clk 0:01:35]}  Nc4 {[%clk 0:00:52]} 31. Ng5 {[%clk 0:01:29]}  g6 {[%clk 0:00:47]} 32. Ne6 {[%clk 0:01:27]}  Rd6 {[%clk 0:00:42]} 33. Ng5 {[%clk 0:01:27]}  Rd2+ {[%clk 0:00:36]} 34. Kg3 {[%clk 0:01:11]}  Ne3 {[%clk 0:00:36]} 35. Nxh7 {[%clk 0:01:11]}  Rxg2+ {[%clk 0:00:34]} 36. Kh3 {[%clk 0:01:12]}  Rf2 {[%clk 0:00:35]} 37. Nf6+ {[%clk 0:01:03]}  Kf8 {[%clk 0:00:35]} 38. Nd7+ {[%clk 0:01:04]}  Kg8 {[%clk 0:00:32]} 39. Nxe5 {[%clk 0:01:05]}  Nf1 {[%clk 0:00:33]} 40. Kh4 {[%clk 0:00:48]}  Rxh2+ {[%clk 0:00:32]} 41. Kg5 {[%clk 0:00:48]}  Rh5+ {[%clk 0:00:32]} 42. Kf6 {[%clk 0:00:48]}  Rf5+ {[%clk 0:00:29]} 43. Kxg6 {[%clk 0:00:44]}  Ne3 {[%clk 0:00:27]} 44. Nc6 {[%clk 0:00:20]}  Rc5 {[%clk 0:00:21]} 45. Ra8# {[%clk 0:00:20]} 1-0


[Site "https://www.chess.com"]

[Event "Titled Tuesday Blitz February 22 Early 2022"]
[White "Jakubowska, Anna"]
[Black "Gunina, Valentina"]
[WhiteFideId "1121952"]
[BlackFideId "4167570"]
[WhiteElo "1924"]
[BlackElo "2465"]
[Result "0-1"]
[Round "02"]
[TimeControl "180+1"]
[Date "2022.02.22"]
[WhiteClock "0:00:09"]
[BlackClock "0:00:54"]

1. e4 {[%clk 0:03:00]}  c6 {[%clk 0:02:59]} 2. d4 {[%clk 0:03:00]}  d5 {[%clk 0:02:59]} 3. e5 {[%clk 0:03:01]}  c5 {[%clk 0:02:59]} 4. dxc5 {[%clk 0:03:00]}  e6 {[%clk 0:02:59]} 5. a3 {[%clk 0:03:00]}  Bxc5 {[%clk 0:02:58]} 6. b4 {[%clk 0:03:00]}  Bb6 {[%clk 0:02:59]} 7. Nf3 {[%clk 0:03:00]}  Ne7 {[%clk 0:02:59]} 8. Bd3 {[%clk 0:02:59]}  a5 {[%clk 0:02:48]} 9. Bb2 {[%clk 0:02:52]}  axb4 {[%clk 0:02:46]} 10. axb4 {[%clk 0:02:53]}  Rxa1 {[%clk 0:02:46]} 11. Bxa1 {[%clk 0:02:54]}  Nbc6 {[%clk 0:02:47]} 12. b5 {[%clk 0:02:51]}  Na5 {[%clk 0:02:32]} 13. O-O {[%clk 0:02:49]}  Qc7 {[%clk 0:02:32]} 14. Nbd2 {[%clk 0:02:42]}  Bd7 {[%clk 0:02:32]} 15. Qe2 {[%clk 0:02:40]}  h6 {[%clk 0:02:28]} 16. Rc1 {[%clk 0:02:27]}  O-O {[%clk 0:02:26]} 17. c4 {[%clk 0:02:26]}  Rc8 {[%clk 0:02:25]} 18. Bb2 {[%clk 0:02:23]}  dxc4 {[%clk 0:02:14]} 19. Nxc4 {[%clk 0:02:20]}  Nxc4 {[%clk 0:02:12]} 20. Rxc4 {[%clk 0:02:18]}  Qd8 {[%clk 0:02:12]} 21. Bd4 {[%clk 0:01:57]}  Bxd4 {[%clk 0:01:58]} 22. Nxd4 {[%clk 0:01:55]}  Rxc4 {[%clk 0:01:54]} 23. Bxc4 {[%clk 0:01:54]}  Qc7 {[%clk 0:01:55]} 24. h3 {[%clk 0:01:28]}  Qc5 {[%clk 0:01:53]} 25. Nf3 {[%clk 0:01:25]}  Nd5 {[%clk 0:01:50]} 26. Qd3 {[%clk 0:01:19]}  Nb6 {[%clk 0:01:45]} 27. Bb3 {[%clk 0:00:45]}  Qxb5 {[%clk 0:01:44]} 28. Qxb5 {[%clk 0:00:43]}  Bxb5 {[%clk 0:01:44]} 29. Nd4 {[%clk 0:00:43]}  Bc4 {[%clk 0:01:44]} 30. Bxc4 {[%clk 0:00:38]}  Nxc4 {[%clk 0:01:44]} 31. f4 {[%clk 0:00:39]}  g5 {[%clk 0:01:37]} 32. g3 {[%clk 0:00:38]}  Na3 {[%clk 0:01:23]} 33. fxg5 {[%clk 0:00:34]}  hxg5 {[%clk 0:01:22]} 34. Nf3 {[%clk 0:00:35]}  b5 {[%clk 0:01:16]} 35. Nxg5 {[%clk 0:00:19]}  b4 {[%clk 0:01:15]} 36. Ne4 {[%clk 0:00:18]}  b3 {[%clk 0:01:16]} 37. Nc3 {[%clk 0:00:13]}  b2 {[%clk 0:01:15]} 38. Kf2 {[%clk 0:00:14]}  b1=Q {[%clk 0:01:15]} 39. Nxb1 {[%clk 0:00:15]}  Nxb1 {[%clk 0:01:15]} 40. Kf3 {[%clk 0:00:15]}  Nd2+ {[%clk 0:01:14]} 41. Kf4 {[%clk 0:00:15]}  Kg7 {[%clk 0:01:14]} 42. h4 {[%clk 0:00:14]}  Kh6 {[%clk 0:01:02]} 43. g4 {[%clk 0:00:13]}  Kg6 {[%clk 0:01:02]} 44. Ke3 {[%clk 0:00:12]}  Nc4+ {[%clk 0:01:02]} 45. Kd4 {[%clk 0:00:13]}  Nb6 {[%clk 0:00:59]} 46. Ke4 {[%clk 0:00:13]}  Nd5 {[%clk 0:00:58]} 47. Kf3 {[%clk 0:00:13]}  Ne7 {[%clk 0:00:54]} 48. Kf4 {[%clk 0:00:12]}  Kh6 {[%clk 0:00:55]} 49. Ke4 {[%clk 0:00:12]}  Ng6 {[%clk 0:00:54]} 50. h5 {[%clk 0:00:11]}  Ne7 {[%clk 0:00:55]} 51. Kf4 {[%clk 0:00:10]}  Nd5+ {[%clk 0:00:53]} 52. Ke4 {[%clk 0:00:11]}  Kg5 {[%clk 0:00:53]} 53. Kf3 {[%clk 0:00:10]}  Ne7 {[%clk 0:00:54]} 54. Kg3 {[%clk 0:00:09]}  Ng8 {[%clk 0:00:54]} 55. Kf3 {[%clk 0:00:09]}  Nh6 {[%clk 0:00:54]} 0-1


[Site "https://www.chess.com"]

[Event "Titled Tuesday Blitz February 22 Early 2022"]
[White "Janaszak, Dawid"]
[Black "FGHSMN"]
[WhiteFideId "1119206"]
[WhiteElo "2199"]
[BlackElo "2802"]
[Result "0-1"]
[Round "02"]
[TimeControl "180+1"]
[Date "2022.02.22"]
[WhiteClock "0:00:01"]
[BlackClock "0:00:07"]

1. e4 {[%clk 0:03:00]}  e5 {[%clk 0:02:59]} 2. Nf3 {[%clk 0:03:00]}  Nc6 {[%clk 0:02:59]} 3. d4 {[%clk 0:03:00]}  exd4 {[%clk 0:02:58]} 4. Nxd4 {[%clk 0:03:01]}  Nf6 {[%clk 0:02:59]} 5. Nxc6 {[%clk 0:03:01]}  bxc6 {[%clk 0:02:59]} 6. e5 {[%clk 0:03:01]}  Qe7 {[%clk 0:03:00]} 7. Qe2 {[%clk 0:03:02]}  Nd5 {[%clk 0:03:00]} 8. h4 {[%clk 0:03:02]}  f6 {[%clk 0:03:00]} 9. c4 {[%clk 0:02:59]}  Ba6 {[%clk 0:03:00]} 10. Rh3 {[%clk 0:02:56]}  Nb6 {[%clk 0:03:00]} 11. Re3 {[%clk 0:02:47]}  O-O-O {[%clk 0:02:17]} 12. Qc2 {[%clk 0:02:31]}  fxe5 {[%clk 0:02:07]} 13. c5 {[%clk 0:02:31]}  Bxf1 {[%clk 0:01:46]} 14. cxb6 {[%clk 0:02:31]}  Bb5 {[%clk 0:01:26]} 15. bxa7 {[%clk 0:02:23]}  Kb7 {[%clk 0:01:27]} 16. a4 {[%clk 0:01:56]}  Ba6 {[%clk 0:01:20]} 17. Rb3+ {[%clk 0:01:55]}  Ka8 {[%clk 0:01:13]} 18. Bg5 {[%clk 0:01:48]}  Qc5 {[%clk 0:00:59]} 19. Rc3 {[%clk 0:01:08]}  Qd5 {[%clk 0:00:44]} 20. Bxd8 {[%clk 0:01:05]}  Bb4 {[%clk 0:00:42]} 21. Bg5 {[%clk 0:00:55]}  Qxg2 {[%clk 0:00:31]} 22. Be3 {[%clk 0:00:35]}  d5 {[%clk 0:00:22]} 23. Nd2 {[%clk 0:00:15]}  Qg1+ {[%clk 0:00:21]} 24. Nf1 {[%clk 0:00:15]}  Qxf1+ {[%clk 0:00:22]} 25. Kd2 {[%clk 0:00:16]}  Qxa1 {[%clk 0:00:22]} 26. Qb3 {[%clk 0:00:11]}  Bxc3+ {[%clk 0:00:20]} 27. Qxc3 {[%clk 0:00:12]}  Qxa4 {[%clk 0:00:18]} 28. Qxe5 {[%clk 0:00:11]}  Qb4+ {[%clk 0:00:18]} 29. Kd1 {[%clk 0:00:10]}  Qd6 {[%clk 0:00:16]} 30. Qxg7 {[%clk 0:00:09]}  Rd8 {[%clk 0:00:12]} 31. h5 {[%clk 0:00:08]}  d4 {[%clk 0:00:12]} 32. Bg5 {[%clk 0:00:08]}  Re8 {[%clk 0:00:13]} 33. Qxh7 {[%clk 0:00:07]}  Be2+ {[%clk 0:00:12]} 34. Kc1 {[%clk 0:00:06]}  Qc5+ {[%clk 0:00:12]} 35. Kb1 {[%clk 0:00:06]}  Bf3 {[%clk 0:00:08]} 36. Ka1 {[%clk 0:00:01]}  Be4 {[%clk 0:00:07]} 0-1


[Site "https://www.chess.com"]

[Event "Titled Tuesday Blitz February 22 Early 2022"]
[White "Jaracz, Pawel"]
[Black "Kislov, Oleg"]
[WhiteFideId "1102222"]
[BlackFideId "13503774"]
[WhiteElo "2429"]
[BlackElo "2252"]
[Result "1-0"]
[Round "02"]
[TimeControl "180+1"]
[Date "2022.02.22"]
[WhiteClock "0:00:40"]
[BlackClock "0:00:03"]

1. e4 {[%clk 0:03:00]}  e6 {[%clk 0:02:59]} 2. d4 {[%clk 0:03:00]}  d5 {[%clk 0:03:00]} 3. Nd2 {[%clk 0:03:00]}  Nf6 {[%clk 0:03:00]} 4. e5 {[%clk 0:03:00]}  Nfd7 {[%clk 0:03:00]} 5. c3 {[%clk 0:03:00]}  c5 {[%clk 0:03:01]} 6. Bd3 {[%clk 0:03:00]}  Nc6 {[%clk 0:03:01]} 7. Ne2 {[%clk 0:03:00]}  cxd4 {[%clk 0:03:01]} 8. cxd4 {[%clk 0:03:00]}  f6 {[%clk 0:03:01]} 9. exf6 {[%clk 0:03:00]}  Nxf6 {[%clk 0:03:01]} 10. Nf3 {[%clk 0:03:00]}  Bd6 {[%clk 0:03:01]} 11. O-O {[%clk 0:02:59]}  O-O {[%clk 0:03:01]} 12. Nc3 {[%clk 0:02:56]}  e5 {[%clk 0:02:50]} 13. dxe5 {[%clk 0:02:55]}  Nxe5 {[%clk 0:02:48]} 14. Be2 {[%clk 0:02:53]}  Kh8 {[%clk 0:02:16]} 15. Bg5 {[%clk 0:02:45]}  Be6 {[%clk 0:02:12]} 16. Nd4 {[%clk 0:02:43]}  Bg8 {[%clk 0:02:10]} 17. Qb3 {[%clk 0:02:27]}  Qd7 {[%clk 0:01:55]} 18. Rad1 {[%clk 0:02:23]}  Rae8 {[%clk 0:01:41]} 19. h3 {[%clk 0:02:15]}  Bb8 {[%clk 0:01:34]} 20. Bh4 {[%clk 0:02:06]}  a6 {[%clk 0:01:33]} 21. Bg3 {[%clk 0:02:04]}  Nc6 {[%clk 0:01:25]} 22. Bxb8 {[%clk 0:02:02]}  Rxb8 {[%clk 0:01:24]} 23. Bf3 {[%clk 0:01:55]}  Rbd8 {[%clk 0:01:21]} 24. Rfe1 {[%clk 0:01:54]}  b5 {[%clk 0:01:03]} 25. Nxc6 {[%clk 0:01:50]}  Qxc6 {[%clk 0:01:03]} 26. Rd4 {[%clk 0:01:49]}  Rd7 {[%clk 0:00:53]} 27. Re5 {[%clk 0:01:42]}  Rfd8 {[%clk 0:00:53]} 28. Qd1 {[%clk 0:01:41]}  a5 {[%clk 0:00:44]} 29. a3 {[%clk 0:01:41]}  Qc5 {[%clk 0:00:42]} 30. Ne2 {[%clk 0:01:31]}  Qd6 {[%clk 0:00:37]} 31. Re3 {[%clk 0:01:29]}  Qc5 {[%clk 0:00:30]} 32. b4 {[%clk 0:01:25]}  axb4 {[%clk 0:00:30]} 33. axb4 {[%clk 0:01:26]}  Qa7 {[%clk 0:00:26]} 34. Nc3 {[%clk 0:01:25]}  Qb7 {[%clk 0:00:20]} 35. Red3 {[%clk 0:01:19]}  Qc6 {[%clk 0:00:12]} 36. g4 {[%clk 0:01:17]}  h6 {[%clk 0:00:12]} 37. h4 {[%clk 0:01:17]}  Bh7 {[%clk 0:00:12]} 38. Re3 {[%clk 0:01:13]}  Ne4 {[%clk 0:00:09]} 39. Ne2 {[%clk 0:01:08]}  Qf6 {[%clk 0:00:07]} 40. Bxe4 {[%clk 0:01:04]}  Bxe4 {[%clk 0:00:07]} 41. Ng3 {[%clk 0:01:02]}  Bh7 {[%clk 0:00:04]} 42. h5 {[%clk 0:00:53]}  Qd6 {[%clk 0:00:03]} 43. Qe2 {[%clk 0:00:51]}  Rf7 {[%clk 0:00:03]} 44. Re8+ {[%clk 0:00:49]}  Rf8 {[%clk 0:00:03]} 45. Rxd8 {[%clk 0:00:48]}  Rxd8 {[%clk 0:00:03]} 46. Qxb5 {[%clk 0:00:48]}  Rf8 {[%clk 0:00:02]} 47. Qe2 {[%clk 0:00:46]}  Qf6 {[%clk 0:00:02]} 48. Qd2 {[%clk 0:00:45]}  Qe5 {[%clk 0:00:02]} 49. Rxd5 {[%clk 0:00:44]}  Qa1+ {[%clk 0:00:02]} 50. Kh2 {[%clk 0:00:43]}  Qa8 {[%clk 0:00:03]} 51. b5 {[%clk 0:00:42]}  Qb7 {[%clk 0:00:03]} 52. Qd4 {[%clk 0:00:41]}  Bg8 {[%clk 0:00:03]} 53. Rd7 {[%clk 0:00:40]} 1-0


[Site "https://www.chess.com"]

[Event "Titled Tuesday Blitz February 22 Early 2022"]
[White "Jiang, Brian"]
[Black "Ferguson, Randal"]
[WhiteFideId "2627922"]
[BlackFideId "30903106"]
[WhiteElo "2412"]
[BlackElo "2078"]
[Result "1-0"]
[Round "02"]
[TimeControl "180+1"]
[Date "2022.02.22"]
[WhiteClock "0:02:19"]
[BlackClock "0:00:42"]

1. d4 {[%clk 0:03:00]}  Nf6 {[%clk 0:02:59]} 2. c4 {[%clk 0:03:00]}  g6 {[%clk 0:02:59]} 3. Nc3 {[%clk 0:03:00]}  d5 {[%clk 0:03:00]} 4. Qb3 {[%clk 0:03:00]}  dxc4 {[%clk 0:02:55]} 5. Qxc4 {[%clk 0:03:01]}  Bg7 {[%clk 0:02:55]} 6. e4 {[%clk 0:03:01]}  O-O {[%clk 0:02:50]} 7. Be2 {[%clk 0:03:00]}  Nc6 {[%clk 0:02:50]} 8. Nf3 {[%clk 0:02:59]}  Bg4 {[%clk 0:02:46]} 9. d5 {[%clk 0:02:59]}  Bxf3 {[%clk 0:02:44]} 10. gxf3 {[%clk 0:03:00]}  Na5 {[%clk 0:02:33]} 11. Qa4 {[%clk 0:02:55]}  b6 {[%clk 0:02:17]} 12. Be3 {[%clk 0:02:50]}  Qd7 {[%clk 0:02:10]} 13. Qc2 {[%clk 0:02:47]}  c5 {[%clk 0:02:05]} 14. O-O {[%clk 0:02:37]}  Qh3 {[%clk 0:02:00]} 15. Kh1 {[%clk 0:02:32]}  Nh5 {[%clk 0:01:55]} 16. Rg1 {[%clk 0:02:31]}  Be5 {[%clk 0:01:49]} 17. Rg2 {[%clk 0:02:31]}  Nf4 {[%clk 0:01:31]} 18. Rg3 {[%clk 0:02:31]}  Qh5 {[%clk 0:01:23]} 19. Bf1 {[%clk 0:02:20]}  c4 {[%clk 0:00:44]} 20. Qd2 {[%clk 0:02:20]}  Nd3 {[%clk 0:00:42]} 21. Rh3 {[%clk 0:02:19]} 1-0


[Site "https://www.chess.com"]